Cogmind - Beta 13 @@@ ROGUE MODE // 2024.04.28 @ 20:04:16 Player: b00n1n Result: Core destroyed Performance ------------- Evolutions (0) 0 Regions Visited (2) 400 Robots Destroyed (7) 35 Value Destroyed (124) 124 Prototype IDs (0) 0 Alien Tech Used (0) 0 Bonus (0) 0 TOTAL SCORE: 559 Bonus ------- None Cogmind --------- Core Integrity 0/250 Matter 290/300 Energy 107/160 System Corruption 14% Temperature Cool (0) Movement Core (100) Ox1 Location -10/Mines Parts ------- > --- POWER (1) -------- Light Nuclear Core > --- PROPULSION (2) --- (None) > --- UTILITY (2) ------ (None) > --- WEAPON (2) ------- (None) > --- INVENTORY (5) ---- Aluminum Leg Aluminum Leg Improved Terrain Scanner Peak State ------------ > --- POWER ------------ Ion Engine > --- PROPULSION ------- Aluminum Leg Aluminum Leg > --- UTILITY ---------- Small Storage Unit Improved Terrain Scanner > --- WEAPON ----------- EM Pulse Gun EM Pulse Gun > --- INVENTORY -------- Light Ion Engine Light Treads Light Treads Wheel Compact Wheel EM Pulse Gun [Rating: 9] Favorites ----------- Power Ion Engine Engine Ion Engine Power Core Light Nuclear Core Propulsion Aluminum Leg Leg Aluminum Leg Flight Unit Flight Unit Utility ECM Suite Device ECM Suite Storage Small Storage Unit Processor Signal Interpreter Weapon EM Pulse Gun Energy Gun EM Pulse Gun Build | -11 -10 -10 ------- Run | Yrd Mat Min Slots Evolved . | . . . Power . | . . . Propulsion . | . . . Utility . | . . . Weapon . | . . . Parts Attached 19 | 7 9 3 Power 4 | 1 1 2 Engine 3 | 1 1 1 Core 1 | . . 1 Reactor . | . . . Propulsion 6 | 2 4 . Treads . | . . . Leg 2 | 2 . . Wheel . | . . . Hover . | . . . Flight 4 | . 4 . Utility 5 | 2 3 . Device 3 | 1 2 . Storage 1 | 1 . . Processor 1 | . 1 . Hackware . | . . . Protection . | . . . Artifact . | . . . Weapon 4 | 2 1 1 Energy Gun 4 | 2 1 1 Energy Cannon . | . . . Ballistic Gun . | . . . Ballistic Cannon . | . . . Launcher . | . . . Special Weapon . | . . . Impact Weapon . | . . . Slashing Weapon . | . . . Piercing Weapon . | . . . Special Melee Weapon . | . . . Unidentified Prototypes . | . . . Parts Lost 8 | . . 8 Power 2 | . . 2 Propulsion 2 | . . 2 Utility 2 | . . 2 Weapon 2 | . . 2 Highest Loss Streak 8 | . . 8 To Critical Strikes . | . . . Average Slot Usage (%) 77 | . 92 38 Engine 10 | . 14 2 Leg 10 | . 14 . Flight 12 | . 13 12 Device 15 | . 17 8 Storage 6 | . 8 . Processor 3 | . . 12 Energy Gun 17 | . 22 4 Naked Turns 9 | . . 9 Heaviest Build 16 | 15 16 5 Greatest Support 20 | 20 20 8 Greatest Overweight (x) 3 | 1 3 1 Average Overweight (x) . | . . . Largest Inventory Capacity 8 | 8 8 5 Average Capacity 6 | 7 6 5 Most Carried 8 | 7 8 4 Average Carried 5 | 4 6 3 Final Capacity 8 | 8 5 5 Final Carried 7 | 7 5 3 Class Distribution -------------------- 100% | Mutant Dominant Class ---------------- Mutant | -10/Materials Mutant | -10/Mines Resources | -11 -10 -10 ----------- Run | Yrd Mat Min Matter Collected 351 | 270 31 50 Remotely . | . . . Salvage Created 245 | 80 55 110 Parts 15 | 4 6 5 Haulers Intercepted . | . . . Recyclers Shooed . | . . . Parts Field Recycled . | . . . Retrieved Matter . | . . . Parts Self-Destructed . | . . . Prevented . | . . . Kills | -11 -10 -10 ------- Run | Yrd Mat Min Combat Hostiles Destroyed 5 | . 3 2 Melee 2 | . . 2 Guns 2 | . 2 . AOE 1 | . 1 . Classes Destroyed 4 | 2 1 1 Tunneler 1 | 1 . . Recycler 1 | 1 . . Swarmer 3 | . 3 . Grunt 2 | . . 2 Best Kill Streak 3 | 2 3 1 Combat Bots Only 3 | . 3 1 Max Kills in Single Turn 1 | 1 1 1 Gunslinging . | . . . Exploded 1 | . 1 . Melee 1 | . . 1 Uniques/NPCs Destroyed . | . . . Combat | -11 -10 -10 -------- Run | Yrd Mat Min Hostile Shots Fired 59 | . 14 45 Missed 18 | . 3 15 Damage Taken 645 | 8 123 514 Core 250 | . 17 233 Absorbed by Shields . | . . . Core Remaining (%) 100 | 100 . . Volleys Fired 13 | 2 5 6 Largest 2 | 2 2 2 Hottest 80 | 80 80 80 Shots Fired 23 | 4 10 9 Gun 23 | 4 10 9 Cannon . | . . . Launcher . | . . . Special . | . . . Kinetic . | . . . Thermal . | . . . Explosive . | . . . Electromagnetic 23 | 4 10 9 Robot Hit Streak 4 | 3 4 3 Robot Miss Streak 1 | . 1 1 Penetration Max . | . . . Secondary Targets . | . . . Shots Hit Robots 14 | 3 5 6 Core Hits 13 | 1 3 9 Critical Kills . | . . . Critical Parts Destroyed . | . . . Critical Strikes . | . . . Melee Attacks . | . . . Impact . | . . . Slashing . | . . . Piercing . | . . . Sneak Attacks . | . . . Combat Hostiles . | . . . Follow-up Attacks . | . . . Damage Inflicted 444 | 70 77 297 Guns 189 | 40 55 94 Cannons . | . . . Explosions 113 | 30 22 61 Melee . | . . . Ramming 142 | . . 142 Kinetic . | . . . Thermal 113 | 30 22 61 Explosive . | . . . Electromagnetic 189 | 40 55 94 Impact . | . . . Slashing . | . . . Piercing . | . . . Highest Corruption 14 | . . 14 Average Corruption 10 | . . 10 Corruption Purged . | . . . Corruption Blocked . | . . . Effects 1 | . . 1 Data Loss (major) 1 | . . 1 Overload Shots . | . . . Overflow Damage 27 | 17 . 10 Projectiles . | . . . Explosions 27 | 17 . 10 Melee . | . . . Knockbacks . | . . . Impact . | . . . Kinetic . | . . . Secondary . | . . . Self-Inflicted Damage 132 | 8 36 88 Shots 3 | 1 1 1 Rammed 52 | . . 52 Targets Rammed 52 | . . 52 Kicked . | . . . Crushed . | . . . Highest Temperature 136 | 30 84 136 Average Temperature 60 | 17 36 89 Received Heat Transfer 279 | . . 279 Siege Activations . | . . . Robots Corrupted . | . . . Combat Hostiles . | . . . Parts Fried . | . . . Impact Corruptions . | . . . Robots Melted . | . . . Combat Hostiles . | . . . Parts Melted . | . . . Heat Transferred 200 | 50 50 100 Parts Sabotaged . | . . . Parts Stolen . | . . . Parts Stripped . | . . . Power Chain Reactions 3 | 1 1 1 Alert | -11 -10 -10 ------- Run | Yrd Mat Min Peak Influence 99 | 10 99 53 Initial 38 | . 6 38 Average 33 | 4 56 24 Maximum Alert Level . | . . . Low Security (%) 100 | 100 100 100 Level 1 . | . . . Level 2 . | . . . Level 3 . | . . . Level 4 . | . . . Level 5 . | . . . High Security . | . . . Max Security . | . . . Squads Dispatched 1 | . 1 . Investigation 1 | . 1 . Extermination . | . . . Reinforcement . | . . . Assault . | . . . Garrison . | . . . Intercept . | . . . Searches Triggered . | . . . Construction Impeded . | . . . Haulers Reinforced . | . . . Active Scanning Responses . | . . . Cargo Convoy Interrupts . | . . . Stealth | -11 -10 -10 --------- Run | Yrd Mat Min Distress Signals 1 | . 1 . Communications Jammed . | . . . Distress Signals . | . . . Times Spotted 7 | . 5 2 Peak Tracking Total 3 | . 3 2 Tactical Retreats . | . . . Traps | -11 -10 -10 ------- Run | Yrd Mat Min Traps Triggered . | . . . Indirectly . | . . . Trap Hack Attempts . | . . . Triggered . | . . . Disarmed . | . . . Reprogrammed . | . . . Reused . | . . . Traps Extracted . | . . . Installed . | . . . Triggered . | . . . Machines | -11 -10 -10 ---------- Run | Yrd Mat Min Machines Disabled . | . . . Max in Single Turn . | . . . Machines Repaired . | . . . Machines Dismantled . | . . . Machines Sabotaged . | . . . Overloaded Fab Kills . | . . . Hacking | -11 -10 -10 --------- Run | Yrd Mat Min Machines Accessed 3 | . 3 . Terminals 1 | . 1 . Fabricators . | . . . Repair Stations 1 | . 1 . Recycling Units 1 | . 1 . Scanalyzers . | . . . Garrison Access . | . . . Total Hacks 7 | . 7 . Successful 3 | . 3 . Failed 4 | . 4 . Catastrophic . | . . . Database Lockouts . | . . . Manual . | . . . Terminals 2 | . 2 . Fabricators . | . . . Repair Stations 3 | . 3 . Recycling Units 2 | . 2 . Scanalyzers . | . . . Garrison Access . | . . . Terminal Hacks 2 | . 2 . Alert Level 1 | . 1 . Locate Traps 1 | . 1 . Fabricator Hacks . | . . . Repair Station Hacks . | . . . Recycling Unit Hacks 1 | . 1 . Recycle Component 1 | . 1 . Scanalyzer . | . . . Garrison Access Hacks . | . . . Unauthorized Hacks . | . . . Terminals . | . . . Fabricators . | . . . Repair Stations . | . . . Recycling Units . | . . . Scanalyzers . | . . . Garrison Access . | . . . Data Cores Recovered . | . . . Used . | . . . Hacking Detections 2 | . 2 . Full Trace Events 1 | . 1 . Feedback Events . | . . . Feedback Blocked . | . . . Robot Schematics Acquired . | . . . Robots Built . | . . . Authchips . | . . . Time . | . . . Total Robot Build Rating . | . . . Part Schematics Acquired . | . . . Parts Built . | . . . Authchips . | . . . Time . | . . . Total Part Build Rating . | . . . Parts Repaired . | . . . Time . | . . . Parts Recycled 1 | . 1 . Recycled Matter . | . . . Retrieved Matter . | . . . Retrieved Components . | . . . Parts Scanalyzed . | . . . Part Schematics Acquired . | . . . Parts Damaged . | . . . Bothacking | -11 -10 -10 ------------ Run | Yrd Mat Min Used RIF Installer . | . . . Robots Hacked . | . . . Non-combat . | . . . Combat . | . . . Robot Hacks Applied . | . . . Relay Couplers Released . | . . . Fabnet Peak Effective % . | . . . Robots Rewired . | . . . Allies Hacked . | . . . Hacks Repelled . | . . . Allies | -11 -10 -10 -------- Run | Yrd Mat Min Total Allies . | . . . Largest Group . | . . . Highest-Rated Group . | . . . Highest-Rated Ally . | . . . Total Orders . | . . . Ally Attacks . | . . . Total Damage . | . . . Kills . | . . . Allies Corrupted . | . . . Allies Melted . | . . . Intel | -11 -10 -10 ------- Run | Yrd Mat Min Robot Analysis Total . | . . . Derelict Logs Recovered . | . . . Drone Launches . | . . . Drone Recoveries . | . . . Exploration | -11 -10 -10 ------------- Run | Yrd Mat Min Turns Passed 368 | 109 180 79 Spaces Moved 253 | 63 175 15 Core 10 | 5 . 5 Treads . | . . . Legs 117 | 58 59 . Wheels . | . . . Hover . | . . . Flight 126 | . 116 10 Fastest Speed 37 | 50 37 37 Average Speed 81 | 115 72 45 Slowest Speed 290 | 120 290 100 Overloaded Moves . | . . . Propulsion Burnouts . | . . . Robots Hopped 4 | . . 4 Cave-ins Triggered . | . . . Exploration Rate (%) 15 | 4 32 11 Regions Visited 2 Branch Regions 1 Pre-discovered Areas . | . . . Known Exits Taken 1 | . 1 . Unknown Exits Taken 1 | 1 . . Scrap Searched . | . . . Spaces Dug . | . . . Terrain Destroyed 12 | 4 3 5 Melee . | . . . Projectile . | . . . AOE 12 | 4 3 5 Terrain Rammed . | . . . Walls Destroyed . | . . . Machines Disabled . | . . . Actions | -11 -10 -10 --------- Run | Yrd Mat Min Total 388 | 92 223 73 Wait 28 | 14 12 2 Move 243 | 62 174 7 Hop 4 | . . 4 Pick Up 11 | 7 4 . Fast Attach 16 | 7 8 1 Attach 2 | . . 2 Detach 5 | . 5 . Swap 1 | . 1 . Drop 14 | . 14 . Fire 13 | 2 5 6 Melee . | . . . Ram 51 | . . 51 Kick . | . . . Crush . | . . . Escape Stasis . | . . . Rewire . | . . . Trap . | . . . Miscellaneous . | . . . Route ------- -11/Scrapyard -10/Materials -10/Mines History --------- Turn | Location | Event 11 | -11/Scrapyard | Discovered new exit (range 15) 110 | -11/Scrapyard | Entered Materials 278 | -10/Materials | Discovered new exit (range 7) 286 | -10/Materials | Identified exit to Mines 290 | -10/Materials | Entered Mines 322 | -10/Mines | Build established: Mutant 335 | -10/Mines | Core integrity fell below 50% 336 | -10/Mines | System corruption reached 10% 351 | -10/Mines | Core integrity fell below 20% 369 | -10/Mines | Core destroyed Last Messages --------------- 00331_ System corrupted by crushing effect (+5). 00332_ Slammed into G-47 Trooper. 00335_ Broken Flight Unit destroyed. 00335_ System corrupted by crushing effect (+5). 00336_ Slammed into G-47 Trooper. 00347_ Destabilizing: Core damaged (-12). 00349_ Slammed into G-47 Trooper. 00349_ Destabilizing: System corrupted (+1). 00350_ Slammed into G-47 Trooper. 00358_ Broken Signal Interpreter destroyed. 00358_ System corrupted by crushing effect (+1). 00358_ Destabilizing: System corrupted (+2). 00358_ G-47 Trooper misfires. 00359_ Slammed into G-47 Trooper. 00365_ G-47 Trooper destroyed. 00366_ System corrupted: Substantial component data lost. 00367_ Acquired Lgt. Nuclear Core. 00368_ R-06 Scavenger collects Aluminum Leg. 00369_ Slammed into R-06 Scavenger. Map ----- +----------------------------------------------------+ | ????????????????????????????????????????????? | | ????????????????????????????????????????????? | | ????????????????????????????????????????????? | | ????????????????????????????????????????????? | | ????????????????????????????????????????????? | | ????????????? ????????????????????????????? | | ????????????? ????????????????????????????? | | ????????????? ????????????????????????????? | | ????????????? ????????????????????????????? | | ????????????? ????????????????????????????? | | ????????????? ????????????????????????????? | | ????????????? ????????????????????????????? | | ????????????? ????????????????????????????? | | ????????????? ????????????????????????????? | | ?????????????# #????????????????????????????? | | ???????####??# #????????????????????????????? | | ???##### #### #????????????????????????????? | | ???# %%%## #????????????????????????????? | | ???# %%## #????????????????????????????? | | ???# %%%## #######??????????????????????? | | ???# %%%%%%%%%%%%#??????????????????????? | | ???# %%########%%#??????????????????????? | | ???# #??????#%%#??????????????????????? | | ???# #??????#%%#?? #??????????????????? | | ???#########??????#= # #??????????????????? | | ??????????????????# @[ #??????????????????? | | ??????????????????# r ##??????????????????? | | ?????????????????# #???????????????????? | | ???????????????? #???????????????????? | | ??????????????? #??????????????????? | | ?????????????? ?????????????????? | | ????????????? ????????????????? | | ???????????? ##### #???????????????? | | ?????????? #?????# #???????????????? | | ????????? #???????####???????????????? | | ????????? ???????????????????????????? | | ????????? #???????????????????????????? | | ??????????? #????????????????????????????? | | ????????????? ?????????????????????????????? | | ????????????????????????????????????????????? | | ????????????????????????????????????????????? | | ????????????????????????????????????????????? | | ????????????????????????????????????????????? | | ????????????????????????????????????????????? | | ????????????????????????????????????????????? | | ????????????????????????????????????????????? | | ????????????????????????????????????????????? | | ????????????????????????????????????????????? | | ????????????????????????????????????????????? | | ????????????????????????????????????????????? | +----------------------------------------------------+ Best States ------------- Heat Dissipation 25 Energy Generation 10 Energy Capacity 250 Matter Stores 300 Matter Capacity 300 Sight Range 16 Terrain Scan Range 16 Terrain Scan Density 10 ECM Strength 1 Evasion (%) 62 Item Schematics ----------------- None Robot Schematics ------------------ None Fabricated ------------ Nothing Alien Tech Used ----------------- None Achievements -------------- None Challenges ------------ None Game ------ Seed XenonShieldProtomatter Manual? 0 Play Time 00:11:36 Cumulative 49.0 hours Start 2024.04.28 @ 19:53:34 End 2024.04.28 @ 20:04:16 Sessions 1 Manual Loads 0 Difficulty Rogue Special Mode None Game No. 23 Rogue 23 Adventurer 0 Explorer 0 Win Type - Total 0 Types 0/0/0/0/0/0/0/0/0 Lore% 31 Gallery% 45 Achievement% 27 Wizard Run 0 Options --------- Layout 1 ASCII 1 Keyboard 1 Movement Vi Keybinds 0 Fullscreen 1 Font 24/Smallcaps Map View 50x35 Zoom Use 20% Tactical HUD 1 Map Filters NONE Filters NONE Steam 1 RUN: 3f2e895c-f540-4881-ade5-dda2b97069d7